[Event "Titled Tuesday Blitz July 4 Late 2023"]
[White "Naroditsky, Daniel"]
[Black "Kantor, Gergely"]
[WhiteFideId "2026961"]
[BlackFideId "751499"]
[WhiteElo "3126"]
[BlackElo "2845"]
[Result "1-0"]
[Round "10"]
[TimeControl "180+2"]
[Date "2023.07.04"]
[WhiteClock "0:00:28"]
[BlackClock "0:00:00"]
[Board "6"]

1. d4 {[%clk 0:03:00]}  Nf6 {[%clk 0:01:32]} 2. Nc3 {[%clk 0:03:00]}  d5 {[%clk 0:01:32]} 3. Bf4 {[%clk 0:03:00]}  e6 {[%clk 0:01:29]} 4. e3 {[%clk 0:03:00]}  Be7 {[%clk 0:01:29]} 5. Nf3 {[%clk 0:03:00]}  O-O {[%clk 0:01:29]} 6. Bd3 {[%clk 0:03:01]}  c5 {[%clk 0:01:29]} 7. dxc5 {[%clk 0:03:02]}  Bxc5 {[%clk 0:01:27]} 8. O-O {[%clk 0:03:02]}  Nc6 {[%clk 0:01:28]} 9. e4 {[%clk 0:03:03]}  h6 {[%clk 0:01:27]} 10. e5 {[%clk 0:02:55]}  Nd7 {[%clk 0:01:27]} 11. Qd2 {[%clk 0:02:56]}  f6 {[%clk 0:01:23]} 12. exf6 {[%clk 0:02:56]}  Qxf6 {[%clk 0:01:23]} 13. Bg3 {[%clk 0:02:56]}  Nd4 {[%clk 0:01:21]} 14. Nxd4 {[%clk 0:02:45]}  Bxd4 {[%clk 0:01:22]} 15. Rae1 {[%clk 0:02:41]}  a6 {[%clk 0:01:21]} 16. Nd1 {[%clk 0:02:33]}  b5 {[%clk 0:01:20]} 17. c3 {[%clk 0:02:27]}  Bc5 {[%clk 0:01:18]} 18. Ne3 {[%clk 0:02:28]}  Qg5 {[%clk 0:01:13]} 19. h4 {[%clk 0:02:17]}  Qh5 {[%clk 0:01:14]} 20. b4 {[%clk 0:01:52]}  Bb6 {[%clk 0:01:09]} 21. Be2 {[%clk 0:01:51]}  Qf7 {[%clk 0:01:04]} 22. Bf3 {[%clk 0:01:42]}  Bb7 {[%clk 0:01:02]} 23. Ng4 {[%clk 0:01:37]}  Rac8 {[%clk 0:01:02]} 24. Re2 {[%clk 0:01:22]}  Rc4 {[%clk 0:00:50]} 25. Rfe1 {[%clk 0:01:19]}  Re8 {[%clk 0:00:50]} 26. Nxh6+ {[%clk 0:01:12]}  gxh6 {[%clk 0:00:49]} 27. Qxh6 {[%clk 0:01:12]}  Qg7 {[%clk 0:00:35]} 28. Qxg7+ {[%clk 0:00:54]}  Kxg7 {[%clk 0:00:35]} 29. Rxe6 {[%clk 0:00:55]}  Rxe6 {[%clk 0:00:35]} 30. Rxe6 {[%clk 0:00:56]}  Kf7 {[%clk 0:00:21]} 31. Rd6 {[%clk 0:00:55]}  Ke7 {[%clk 0:00:20]} 32. h5 {[%clk 0:00:39]}  Bc7 {[%clk 0:00:20]} 33. Rg6 {[%clk 0:00:35]}  Bxg3 {[%clk 0:00:20]} 34. fxg3 {[%clk 0:00:30]}  Rxc3 {[%clk 0:00:19]} 35. h6 {[%clk 0:00:29]}  Rc8 {[%clk 0:00:19]} 36. Rg7+ {[%clk 0:00:28]}  Kd6 {[%clk 0:00:19]} 37. Rxd7+ {[%clk 0:00:27]}  Kxd7 {[%clk 0:00:18]} 38. Bg4+ {[%clk 0:00:27]}  Ke7 {[%clk 0:00:00]} 39. Bxc8 {[%clk 0:00:28]} 1-0


[Site "https://www.chess.com"]

[Event "Titled Tuesday Blitz July 4 Late 2023"]
[White "Paravyan, David"]
[Black "Rosen, Eric"]
[WhiteFideId "4194985"]
[BlackFideId "2032562"]
[WhiteElo "2979"]
[BlackElo "2702"]
[Result "1-0"]
[Round "10"]
[TimeControl "180+2"]
[Date "2023.07.04"]
[WhiteClock "0:02:29"]
[BlackClock "0:00:01"]
[Board "8"]

1. d4 {[%clk 0:03:00]}  d5 {[%clk 0:02:57]} 2. c4 {[%clk 0:03:01]}  e6 {[%clk 0:02:57]} 3. Nf3 {[%clk 0:03:01]}  Nf6 {[%clk 0:02:57]} 4. g3 {[%clk 0:03:02]}  dxc4 {[%clk 0:02:57]} 5. Bg2 {[%clk 0:03:02]}  Bb4+ {[%clk 0:02:58]} 6. Bd2 {[%clk 0:03:02]}  c5 {[%clk 0:02:58]} 7. O-O {[%clk 0:03:02]}  O-O {[%clk 0:02:58]} 8. Qc1 {[%clk 0:03:00]}  a5 {[%clk 0:02:54]} 9. Rd1 {[%clk 0:02:59]}  Qe7 {[%clk 0:02:25]} 10. a3 {[%clk 0:02:56]}  Bxd2 {[%clk 0:02:22]} 11. Nbxd2 {[%clk 0:02:57]}  b6 {[%clk 0:01:53]} 12. Nxc4 {[%clk 0:02:56]}  Nbd7 {[%clk 0:01:49]} 13. Nfe5 {[%clk 0:02:56]}  Ra6 {[%clk 0:01:01]} 14. Nc6 {[%clk 0:02:55]}  Qe8 {[%clk 0:01:01]} 15. Nd6 {[%clk 0:02:55]}  Bb7 {[%clk 0:00:53]} 16. Nxe8 {[%clk 0:02:54]}  Rxe8 {[%clk 0:00:53]} 17. dxc5 {[%clk 0:02:54]}  Nxc5 {[%clk 0:00:53]} 18. Qc4 {[%clk 0:02:53]}  Raa8 {[%clk 0:00:51]} 19. Ne5 {[%clk 0:02:52]}  Ba6 {[%clk 0:00:49]} 20. Qc2 {[%clk 0:02:52]}  Rac8 {[%clk 0:00:49]} 21. Rac1 {[%clk 0:02:51]}  a4 {[%clk 0:00:46]} 22. Bf3 {[%clk 0:02:46]}  h5 {[%clk 0:00:45]} 23. Qb1 {[%clk 0:02:43]}  Re7 {[%clk 0:00:41]} 24. Nc6 {[%clk 0:02:42]}  Rec7 {[%clk 0:00:40]} 25. Nb4 {[%clk 0:02:42]}  Bb5 {[%clk 0:00:40]} 26. Rc3 {[%clk 0:02:42]}  h4 {[%clk 0:00:40]} 27. gxh4 {[%clk 0:02:41]}  Nb3 {[%clk 0:00:37]} 28. Rxc7 {[%clk 0:02:40]}  Rxc7 {[%clk 0:00:37]} 29. Rd8+ {[%clk 0:02:41]}  Ne8 {[%clk 0:00:38]} 30. Nc6 {[%clk 0:02:34]}  Kf8 {[%clk 0:00:32]} 31. Qh7 {[%clk 0:02:34]}  Bxc6 {[%clk 0:00:31]} 32. Bxc6 {[%clk 0:02:34]}  Ke7 {[%clk 0:00:28]} 33. Rxe8+ {[%clk 0:02:33]}  Kd6 {[%clk 0:00:28]} 34. Bxa4 {[%clk 0:02:34]}  Nc5 {[%clk 0:00:21]} 35. Rd8+ {[%clk 0:02:33]}  Ke7 {[%clk 0:00:20]} 36. Rd4 {[%clk 0:02:34]}  e5 {[%clk 0:00:19]} 37. Rc4 {[%clk 0:02:34]}  Ra7 {[%clk 0:00:18]} 38. Bc2 {[%clk 0:02:34]}  g6 {[%clk 0:00:16]} 39. h5 {[%clk 0:02:33]}  Kd6 {[%clk 0:00:07]} 40. h6 {[%clk 0:02:33]}  b5 {[%clk 0:00:08]} 41. Rc3 {[%clk 0:02:33]}  b4 {[%clk 0:00:07]} 42. axb4 {[%clk 0:02:33]}  Ne6 {[%clk 0:00:06]} 43. e3 {[%clk 0:02:31]}  e4 {[%clk 0:00:04]} 44. Kg2 {[%clk 0:02:31]}  Rb7 {[%clk 0:00:03]} 45. Qh8 {[%clk 0:02:31]}  f5 {[%clk 0:00:02]} 46. b5 {[%clk 0:02:30]}  Ng5 {[%clk 0:00:02]} 47. Rc6+ {[%clk 0:02:29]}  Kd5 {[%clk 0:00:01]} 48. Bb3# {[%clk 0:02:29]} 1-0


[Site "https://www.chess.com"]

[Event "Titled Tuesday Blitz July 4 Late 2023"]
[White "Chigaev, Maksim"]
[Black "Mattheii"]
[WhiteFideId "4108116"]
[WhiteElo "2940"]
[BlackElo "2562"]
[Result "1-0"]
[Round "10"]
[TimeControl "180+2"]
[Date "2023.07.04"]
[WhiteClock "0:00:04"]
[BlackClock "0:00:03"]
[Board "9"]

1. e4 {[%clk 0:03:00]}  c5 {[%clk 0:03:00]} 2. Nf3 {[%clk 0:03:01]}  Nc6 {[%clk 0:03:00]} 3. Bb5 {[%clk 0:03:01]}  g6 {[%clk 0:03:01]} 4. O-O {[%clk 0:03:01]}  Bg7 {[%clk 0:03:01]} 5. Re1 {[%clk 0:03:02]}  e5 {[%clk 0:02:52]} 6. Bxc6 {[%clk 0:03:02]}  dxc6 {[%clk 0:02:50]} 7. d3 {[%clk 0:03:02]}  Qe7 {[%clk 0:02:49]} 8. a4 {[%clk 0:02:57]}  Nf6 {[%clk 0:02:44]} 9. a5 {[%clk 0:02:56]}  Nd7 {[%clk 0:02:45]} 10. Nbd2 {[%clk 0:02:53]}  Nf8 {[%clk 0:02:43]} 11. Nc4 {[%clk 0:02:53]}  f6 {[%clk 0:02:42]} 12. Be3 {[%clk 0:02:51]}  Ne6 {[%clk 0:02:42]} 13. c3 {[%clk 0:02:49]}  O-O {[%clk 0:02:40]} 14. Nfd2 {[%clk 0:02:47]}  Rd8 {[%clk 0:02:39]} 15. Qc2 {[%clk 0:02:31]}  Qd7 {[%clk 0:02:27]} 16. Rad1 {[%clk 0:01:55]}  Qxd3 {[%clk 0:02:26]} 17. Qa4 {[%clk 0:01:54]}  Qd7 {[%clk 0:02:16]} 18. h4 {[%clk 0:01:55]}  Qc7 {[%clk 0:02:11]} 19. Nf1 {[%clk 0:01:35]}  Bd7 {[%clk 0:02:01]} 20. Qb3 {[%clk 0:01:32]}  Be8 {[%clk 0:01:41]} 21. Ng3 {[%clk 0:01:09]}  Bf7 {[%clk 0:01:40]} 22. Rxd8+ {[%clk 0:00:56]}  Rxd8 {[%clk 0:01:40]} 23. Qa4 {[%clk 0:00:57]}  Bf8 {[%clk 0:01:37]} 24. h5 {[%clk 0:00:57]}  Nf4 {[%clk 0:01:30]} 25. hxg6 {[%clk 0:00:53]}  hxg6 {[%clk 0:01:31]} 26. Bxf4 {[%clk 0:00:48]}  exf4 {[%clk 0:01:32]} 27. Nf1 {[%clk 0:00:48]}  b5 {[%clk 0:01:17]} 28. axb6 {[%clk 0:00:49]}  axb6 {[%clk 0:01:17]} 29. Ncd2 {[%clk 0:00:48]}  b5 {[%clk 0:01:16]} 30. Qc2 {[%clk 0:00:48]}  c4 {[%clk 0:01:16]} 31. Nf3 {[%clk 0:00:46]}  Bd6 {[%clk 0:01:10]} 32. N1h2 {[%clk 0:00:40]}  Be5 {[%clk 0:01:06]} 33. Ng4 {[%clk 0:00:39]}  Kg7 {[%clk 0:01:06]} 34. Rd1 {[%clk 0:00:29]}  Rxd1+ {[%clk 0:00:56]} 35. Qxd1 {[%clk 0:00:30]}  Be6 {[%clk 0:00:57]} 36. Ngxe5 {[%clk 0:00:23]}  fxe5 {[%clk 0:00:58]} 37. Qa1 {[%clk 0:00:18]}  Bg4 {[%clk 0:00:50]} 38. Nh2 {[%clk 0:00:18]}  Be6 {[%clk 0:00:45]} 39. Qa8 {[%clk 0:00:18]}  Qc8 {[%clk 0:00:38]} 40. Qa7+ {[%clk 0:00:13]}  Qd7 {[%clk 0:00:38]} 41. Qc5 {[%clk 0:00:13]}  Kf6 {[%clk 0:00:24]} 42. Nf3 {[%clk 0:00:13]}  Qc7 {[%clk 0:00:20]} 43. Qf8+ {[%clk 0:00:14]}  Bf7 {[%clk 0:00:18]} 44. Qh8+ {[%clk 0:00:11]}  Ke7 {[%clk 0:00:10]} 45. Nxe5 {[%clk 0:00:07]}  Qd6 {[%clk 0:00:10]} 46. Qg7 {[%clk 0:00:07]}  Qf6 {[%clk 0:00:08]} 47. Qxf6+ {[%clk 0:00:07]}  Kxf6 {[%clk 0:00:08]} 48. Nxc6 {[%clk 0:00:05]}  Be8 {[%clk 0:00:06]} 49. Nd4 {[%clk 0:00:05]}  Ke5 {[%clk 0:00:06]} 50. f3 {[%clk 0:00:05]}  b4 {[%clk 0:00:06]} 51. Kf2 {[%clk 0:00:05]}  g5 {[%clk 0:00:05]} 52. Nc2 {[%clk 0:00:04]}  bxc3 {[%clk 0:00:05]} 53. bxc3 {[%clk 0:00:05]}  g4 {[%clk 0:00:06]} 54. Na3 {[%clk 0:00:03]}  Bf7 {[%clk 0:00:04]} 55. Nb5 {[%clk 0:00:03]}  Bh5 {[%clk 0:00:03]} 56. Nd4 {[%clk 0:00:03]}  gxf3 {[%clk 0:00:03]} 57. gxf3 {[%clk 0:00:03]}  Bf7 {[%clk 0:00:03]} 58. Ne2 {[%clk 0:00:03]}  Be8 {[%clk 0:00:03]} 59. Ng1 {[%clk 0:00:04]}  Bf7 {[%clk 0:00:03]} 60. Ke2 {[%clk 0:00:04]}  Be8 {[%clk 0:00:04]} 61. Nh3 {[%clk 0:00:05]}  Bd7 {[%clk 0:00:04]} 62. Nf2 {[%clk 0:00:05]}  Be8 {[%clk 0:00:05]} 63. Ng4+ {[%clk 0:00:05]}  Ke6 {[%clk 0:00:04]} 64. Kf2 {[%clk 0:00:04]}  Bh5 {[%clk 0:00:04]} 65. Nh2 {[%clk 0:00:04]}  Ke5 {[%clk 0:00:04]} 66. Nf1 {[%clk 0:00:04]}  Be8 {[%clk 0:00:04]} 67. Ke2 {[%clk 0:00:04]}  Bf7 {[%clk 0:00:04]} 68. Nd2 {[%clk 0:00:05]}  Be6 {[%clk 0:00:04]} 69. Nb1 {[%clk 0:00:05]}  Bf7 {[%clk 0:00:04]} 70. Na3 {[%clk 0:00:05]}  Bg8 {[%clk 0:00:05]} 71. Nb5 {[%clk 0:00:05]}  Bf7 {[%clk 0:00:05]} 72. Nd4 {[%clk 0:00:04]}  Bg8 {[%clk 0:00:04]} 73. Kf2 {[%clk 0:00:05]}  Bf7 {[%clk 0:00:04]} 74. Kg2 {[%clk 0:00:06]}  Bh5 {[%clk 0:00:04]} 75. Nc6+ {[%clk 0:00:03]}  Kd6 {[%clk 0:00:03]} 76. Nb4 {[%clk 0:00:02]}  Ke5 {[%clk 0:00:03]} 77. Kf2 {[%clk 0:00:03]}  Be8 {[%clk 0:00:02]} 78. Nd5 {[%clk 0:00:02]}  Bf7 {[%clk 0:00:02]} 79. Nb6 {[%clk 0:00:03]}  Be8 {[%clk 0:00:02]} 80. Nxc4+ {[%clk 0:00:03]}  Ke6 {[%clk 0:00:03]} 81. Nd2 {[%clk 0:00:03]}  Bb5 {[%clk 0:00:03]} 82. Nb3 {[%clk 0:00:03]}  Bc6 {[%clk 0:00:04]} 83. Nd4+ {[%clk 0:00:04]}  Kd6 {[%clk 0:00:03]} 84. Nxc6 {[%clk 0:00:04]} 1-0


[Site "https://www.chess.com"]

[Event "Titled Tuesday Blitz July 4 Late 2023"]
[White "Sargsyan, Shant"]
[Black "Halkias, Stelios"]
[WhiteFideId "13306766"]
[BlackFideId "4201809"]
[WhiteElo "2994"]
[BlackElo "2796"]
[Result "1/2-1/2"]
[Round "10"]
[TimeControl "180+2"]
[Date "2023.07.04"]
[WhiteClock "0:00:59"]
[BlackClock "0:00:35"]
[Board "12"]

1. g3 {[%clk 0:03:00]}  Nf6 {[%clk 0:02:59]} 2. Bg2 {[%clk 0:03:01]}  g6 {[%clk 0:02:59]} 3. c4 {[%clk 0:03:01]}  Bg7 {[%clk 0:03:00]} 4. Nc3 {[%clk 0:03:02]}  d6 {[%clk 0:03:00]} 5. d3 {[%clk 0:03:02]}  O-O {[%clk 0:03:01]} 6. Nf3 {[%clk 0:03:03]}  e5 {[%clk 0:03:00]} 7. O-O {[%clk 0:03:03]}  h6 {[%clk 0:03:00]} 8. Rb1 {[%clk 0:03:03]}  Re8 {[%clk 0:03:00]} 9. b4 {[%clk 0:03:03]}  e4 {[%clk 0:03:00]} 10. dxe4 {[%clk 0:03:02]}  Nxe4 {[%clk 0:03:00]} 11. Nxe4 {[%clk 0:03:03]}  Rxe4 {[%clk 0:03:00]} 12. Nd2 {[%clk 0:03:04]}  Re8 {[%clk 0:02:59]} 13. Bb2 {[%clk 0:03:04]}  Nc6 {[%clk 0:02:56]} 14. Bxg7 {[%clk 0:03:04]}  Kxg7 {[%clk 0:02:56]} 15. e3 {[%clk 0:03:01]}  Ne5 {[%clk 0:02:55]} 16. Rb3 {[%clk 0:02:59]}  c6 {[%clk 0:02:55]} 17. Qa1 {[%clk 0:02:59]}  f6 {[%clk 0:02:49]} 18. Rd1 {[%clk 0:02:58]}  Bf5 {[%clk 0:02:44]} 19. Rc3 {[%clk 0:02:51]}  Qe7 {[%clk 0:02:42]} 20. h3 {[%clk 0:02:49]}  h5 {[%clk 0:02:40]} 21. e4 {[%clk 0:02:48]}  Bc8 {[%clk 0:02:37]} 22. f4 {[%clk 0:02:48]}  Nf7 {[%clk 0:02:35]} 23. c5 {[%clk 0:02:48]}  a5 {[%clk 0:02:31]} 24. Nc4 {[%clk 0:02:40]}  dxc5 {[%clk 0:02:31]} 25. bxc5 {[%clk 0:02:40]}  Qxc5+ {[%clk 0:02:29]} 26. Kh2 {[%clk 0:02:41]}  Qb4 {[%clk 0:02:14]} 27. a3 {[%clk 0:02:37]}  Qe7 {[%clk 0:02:14]} 28. e5 {[%clk 0:02:14]}  Be6 {[%clk 0:02:03]} 29. Nd6 {[%clk 0:02:04]}  Nxd6 {[%clk 0:01:29]} 30. Rxd6 {[%clk 0:02:03]}  fxe5 {[%clk 0:01:27]} 31. fxe5 {[%clk 0:02:04]}  Kh7 {[%clk 0:01:23]} 32. Rcd3 {[%clk 0:01:55]}  Qg5 {[%clk 0:01:19]} 33. h4 {[%clk 0:01:53]}  Qg4 {[%clk 0:01:14]} 34. R3d4 {[%clk 0:01:42]}  Qe2 {[%clk 0:01:11]} 35. Rd2 {[%clk 0:01:42]}  Qe3 {[%clk 0:01:09]} 36. R6d3 {[%clk 0:01:40]}  Qc5 {[%clk 0:01:07]} 37. Rd6 {[%clk 0:01:36]}  Re7 {[%clk 0:01:04]} 38. Be4 {[%clk 0:01:22]}  Rf8 {[%clk 0:01:02]} 39. Qe1 {[%clk 0:01:15]}  Bf5 {[%clk 0:00:58]} 40. e6 {[%clk 0:01:03]}  Bxe4 {[%clk 0:00:48]} 41. Qxe4 {[%clk 0:01:04]}  Rf2+ {[%clk 0:00:48]} 42. Rxf2 {[%clk 0:01:04]}  Qxf2+ {[%clk 0:00:47]} 43. Kh3 {[%clk 0:01:04]}  Qf1+ {[%clk 0:00:46]} 44. Kh2 {[%clk 0:01:04]}  Qf2+ {[%clk 0:00:45]} 45. Kh3 {[%clk 0:01:04]}  Qf1+ {[%clk 0:00:35]} 46. Kh2 {[%clk 0:00:59]}  Qf2+ {[%clk 0:00:35]} 1/2-1/2


[Site "https://www.chess.com"]

[Event "Titled Tuesday Blitz July 4 Late 2023"]
[White "Indjic, Aleksandar"]
[Black "Pulvett Marin, Daniel Eduardo"]
[WhiteFideId "911925"]
[BlackFideId "3900410"]
[WhiteElo "2970"]
[BlackElo "2734"]
[Result "1-0"]
[Round "10"]
[TimeControl "180+2"]
[Date "2023.07.04"]
[WhiteClock "0:00:08"]
[BlackClock "0:00:00"]
[Board "14"]

1. d4 {[%clk 0:03:00]}  Nf6 {[%clk 0:02:58]} 2. c4 {[%clk 0:03:00]}  g6 {[%clk 0:02:58]} 3. h4 {[%clk 0:03:00]}  Bg7 {[%clk 0:02:59]} 4. Nc3 {[%clk 0:02:58]}  d6 {[%clk 0:02:56]} 5. e4 {[%clk 0:02:58]}  c5 {[%clk 0:02:55]} 6. d5 {[%clk 0:02:57]}  h5 {[%clk 0:02:51]} 7. Nf3 {[%clk 0:02:55]}  O-O {[%clk 0:02:48]} 8. Ng5 {[%clk 0:02:54]}  Na6 {[%clk 0:02:36]} 9. Be2 {[%clk 0:02:52]}  Nc7 {[%clk 0:02:35]} 10. Bf4 {[%clk 0:02:51]}  e6 {[%clk 0:02:22]} 11. dxe6 {[%clk 0:02:49]}  Nxe6 {[%clk 0:02:23]} 12. Nxe6 {[%clk 0:02:48]}  Bxe6 {[%clk 0:02:22]} 13. Bxd6 {[%clk 0:02:48]}  Re8 {[%clk 0:02:21]} 14. Bxc5 {[%clk 0:02:46]}  Qa5 {[%clk 0:02:21]} 15. b4 {[%clk 0:02:45]}  Qc7 {[%clk 0:02:04]} 16. Nb5 {[%clk 0:02:42]}  Qe5 {[%clk 0:02:00]} 17. O-O {[%clk 0:02:36]}  Rad8 {[%clk 0:01:54]} 18. Qc2 {[%clk 0:02:18]}  Nxe4 {[%clk 0:01:48]} 19. Be3 {[%clk 0:01:56]}  a6 {[%clk 0:01:48]} 20. Na3 {[%clk 0:01:25]}  Bf5 {[%clk 0:01:47]} 21. Bd3 {[%clk 0:00:55]}  Nxf2 {[%clk 0:01:31]} 22. Qxf2 {[%clk 0:00:48]}  Rxd3 {[%clk 0:01:26]} 23. Bf4 {[%clk 0:00:42]}  Qc3 {[%clk 0:01:25]} 24. Nc2 {[%clk 0:00:41]}  Qxc4 {[%clk 0:01:18]} 25. Rac1 {[%clk 0:00:41]}  Bb2 {[%clk 0:01:16]} 26. Ne3 {[%clk 0:00:39]}  Qd4 {[%clk 0:00:52]} 27. Rc2 {[%clk 0:00:34]}  Bc3 {[%clk 0:00:40]} 28. Nxf5 {[%clk 0:00:28]}  gxf5 {[%clk 0:00:41]} 29. Qxd4 {[%clk 0:00:22]}  Bxd4+ {[%clk 0:00:42]} 30. Kh2 {[%clk 0:00:23]}  Re4 {[%clk 0:00:38]} 31. Bg3 {[%clk 0:00:19]}  Rg4 {[%clk 0:00:35]} 32. Rf3 {[%clk 0:00:18]}  Rd1 {[%clk 0:00:27]} 33. Rc8+ {[%clk 0:00:17]}  Kg7 {[%clk 0:00:26]} 34. Rxf5 {[%clk 0:00:12]}  Bg1+ {[%clk 0:00:20]} 35. Kh3 {[%clk 0:00:12]}  Bd4 {[%clk 0:00:19]} 36. Rxh5 {[%clk 0:00:12]}  Rg6 {[%clk 0:00:14]} 37. Rg5 {[%clk 0:00:10]}  Rd3 {[%clk 0:00:00]} 38. Rd8 {[%clk 0:00:08]} 1-0


[Site "https://www.chess.com"]

[Event "Titled Tuesday Blitz July 4 Late 2023"]
[White "Pranav, V"]
[Black "Golubev, Mikhail"]
[WhiteFideId "25060783"]
[BlackFideId "14100983"]
[WhiteElo "2972"]
[BlackElo "2589"]
[Result "0-1"]
[Round "10"]
[TimeControl "180+2"]
[Date "2023.07.04"]
[WhiteClock "0:00:01"]
[BlackClock "0:00:08"]
[Board "18"]

1. e4 {[%clk 0:03:00]}  c5 {[%clk 0:02:57]} 2. Nf3 {[%clk 0:03:00]}  d6 {[%clk 0:02:58]} 3. d4 {[%clk 0:03:00]}  cxd4 {[%clk 0:02:58]} 4. Nxd4 {[%clk 0:03:01]}  Nf6 {[%clk 0:02:58]} 5. Nc3 {[%clk 0:03:01]}  g6 {[%clk 0:02:58]} 6. Be3 {[%clk 0:03:00]}  Bg7 {[%clk 0:02:59]} 7. f3 {[%clk 0:03:00]}  Nc6 {[%clk 0:02:59]} 8. Qd2 {[%clk 0:03:00]}  O-O {[%clk 0:03:00]} 9. Bc4 {[%clk 0:02:59]}  Bd7 {[%clk 0:02:58]} 10. O-O-O {[%clk 0:02:59]}  Qa5 {[%clk 0:02:58]} 11. h4 {[%clk 0:02:55]}  Rfc8 {[%clk 0:02:55]} 12. Bb3 {[%clk 0:02:54]}  Ne5 {[%clk 0:02:55]} 13. Kb1 {[%clk 0:02:53]}  b5 {[%clk 0:02:53]} 14. h5 {[%clk 0:02:43]}  Nc4 {[%clk 0:02:51]} 15. Bxc4 {[%clk 0:02:41]}  bxc4 {[%clk 0:02:51]} 16. Bh6 {[%clk 0:02:40]}  Bxh6 {[%clk 0:02:37]} 17. Qxh6 {[%clk 0:02:39]}  Rab8 {[%clk 0:02:37]} 18. Kc1 {[%clk 0:02:17]}  Rxb2 {[%clk 0:02:20]} 19. Kxb2 {[%clk 0:02:04]}  Qb4+ {[%clk 0:02:20]} 20. Kc1 {[%clk 0:02:05]}  Qxc3 {[%clk 0:02:20]} 21. hxg6 {[%clk 0:02:05]}  Qa1+ {[%clk 0:01:36]} 22. Kd2 {[%clk 0:02:03]}  Qxd4+ {[%clk 0:01:37]} 23. Ke2 {[%clk 0:02:02]}  Qc3 {[%clk 0:01:34]} 24. gxf7+ {[%clk 0:01:49]}  Kxf7 {[%clk 0:01:33]} 25. g4 {[%clk 0:01:36]}  Bxg4 {[%clk 0:01:26]} 26. Rhf1 {[%clk 0:01:08]}  Qxc2+ {[%clk 0:01:20]} 27. Rd2 {[%clk 0:01:07]}  Qxe4+ {[%clk 0:01:16]} 28. Kf2 {[%clk 0:01:08]}  Qxf3+ {[%clk 0:01:13]} 29. Kg1 {[%clk 0:01:07]}  Qe4 {[%clk 0:00:28]} 30. Rg2 {[%clk 0:00:46]}  Rg8 {[%clk 0:00:25]} 31. Rf4 {[%clk 0:00:25]}  Qe3+ {[%clk 0:00:19]} 32. Kh2 {[%clk 0:00:25]}  Qe5 {[%clk 0:00:15]} 33. Kg1 {[%clk 0:00:18]}  Ke8 {[%clk 0:00:13]} 34. Rxc4 {[%clk 0:00:13]}  Rg6 {[%clk 0:00:12]} 35. Qd2 {[%clk 0:00:11]}  Qa1+ {[%clk 0:00:10]} 36. Rc1 {[%clk 0:00:11]}  Qe5 {[%clk 0:00:09]} 37. Re1 {[%clk 0:00:09]}  Qc5+ {[%clk 0:00:08]} 38. Kh2 {[%clk 0:00:10]}  Qh5+ {[%clk 0:00:07]} 39. Kg1 {[%clk 0:00:10]}  Bf3 {[%clk 0:00:07]} 40. Rxg6 {[%clk 0:00:07]}  Qxg6+ {[%clk 0:00:08]} 41. Kf1 {[%clk 0:00:06]}  Ne4 {[%clk 0:00:09]} 42. Qb2 {[%clk 0:00:04]}  Qf5 {[%clk 0:00:08]} 43. Kg1 {[%clk 0:00:04]}  Qg4+ {[%clk 0:00:07]} 44. Kf1 {[%clk 0:00:01]}  Qh3+ {[%clk 0:00:08]} 0-1


[Site "https://www.chess.com"]

[Event "Titled Tuesday Blitz July 4 Late 2023"]
[White "Zhigalko, Sergei"]
[Black "MKlose11"]
[WhiteFideId "13502956"]
[WhiteElo "2880"]
[BlackElo "2660"]
[Result "1-0"]
[Round "10"]
[TimeControl "180+2"]
[Date "2023.07.04"]
[WhiteClock "0:00:34"]
[BlackClock "0:00:10"]
[Board "19"]

1. e4 {[%clk 0:03:00]}  e6 {[%clk 0:03:00]} 2. d4 {[%clk 0:03:00]}  d5 {[%clk 0:03:00]} 3. e5 {[%clk 0:03:01]}  c5 {[%clk 0:02:59]} 4. c3 {[%clk 0:03:02]}  Nc6 {[%clk 0:02:59]} 5. Nf3 {[%clk 0:03:02]}  Bd7 {[%clk 0:03:00]} 6. Be2 {[%clk 0:03:01]}  Nge7 {[%clk 0:02:53]} 7. Na3 {[%clk 0:03:00]}  cxd4 {[%clk 0:02:48]} 8. cxd4 {[%clk 0:03:01]}  Nf5 {[%clk 0:02:44]} 9. Nc2 {[%clk 0:03:00]}  Nb4 {[%clk 0:02:42]} 10. Ne3 {[%clk 0:03:00]}  Nxe3 {[%clk 0:02:42]} 11. fxe3 {[%clk 0:03:01]}  Be7 {[%clk 0:02:37]} 12. O-O {[%clk 0:02:56]}  O-O {[%clk 0:02:34]} 13. a3 {[%clk 0:02:53]}  Nc6 {[%clk 0:02:33]} 14. b4 {[%clk 0:02:53]}  a6 {[%clk 0:02:32]} 15. Bd3 {[%clk 0:02:49]}  Rc8 {[%clk 0:02:26]} 16. Ra2 {[%clk 0:02:46]}  Na7 {[%clk 0:02:24]} 17. Bb1 {[%clk 0:02:27]}  Bb5 {[%clk 0:02:23]} 18. Rff2 {[%clk 0:02:23]}  Qc7 {[%clk 0:02:15]} 19. Rac2 {[%clk 0:02:17]}  Ba4 {[%clk 0:02:04]} 20. Qd3 {[%clk 0:02:08]}  Bb5 {[%clk 0:01:33]} 21. Qxh7+ {[%clk 0:01:56]}  Kxh7 {[%clk 0:01:32]} 22. Rxc7+ {[%clk 0:01:57]}  g6 {[%clk 0:01:29]} 23. Rxc8 {[%clk 0:00:47]}  Rxc8 {[%clk 0:01:23]} 24. Bd2 {[%clk 0:00:47]}  Ba4 {[%clk 0:01:09]} 25. e4 {[%clk 0:00:47]}  dxe4 {[%clk 0:00:59]} 26. Ng5+ {[%clk 0:00:38]}  Bxg5 {[%clk 0:00:54]} 27. Bxg5 {[%clk 0:00:39]}  Kg8 {[%clk 0:00:47]} 28. Bxe4 {[%clk 0:00:38]}  Nb5 {[%clk 0:00:21]} 29. Bxb7 {[%clk 0:00:34]}  Rc1+ {[%clk 0:00:10]} 30. Bxc1 {[%clk 0:00:34]} 1-0


[Site "https://www.chess.com"]